[Event "Championnat d'Europe Rapide"]
[Date "2024.12.08"]
[White "Avramidou, Anastasia"]
[Black "Hamitevici, Vladimir"]
[WhiteElo "2298"]
[BlackElo "2423"]
[Round "11.51"]
[Result "1/2-1/2"]
[TimeControl "900+10"]

1. d4 {[%emt 00:00:01] [%clk 00:15:17]} Nf6 {[%emt 00:00:04] [%clk 00:15:17]} 2.
c4 {[%emt 00:00:01] [%clk 00:15:26]} b6 {[%emt 00:00:25] [%clk 00:15:02]} 3. Nc3
{[%emt 00:00:06] [%clk 00:15:29]} Bb7 {[%clk 00:15:11]} 4. a3 {[%emt 00:00:11]
[%clk 00:15:28]} e6 {[%emt 00:00:23] [%clk 00:14:59]} 5. Nf3 {[%emt 00:00:21]
[%clk 00:15:16]} d5 {[%emt 00:00:08] [%clk 00:15:02]} 6. Bg5 {[%emt 00:01:31]
[%clk 00:13:54]} Be7 {[%emt 00:00:08] [%clk 00:15:04]} 7. e3 {[%emt 00:00:02]
[%clk 00:14:02]} O-O {[%emt 00:00:15] [%clk 00:14:58]} 8. Rc1 {[%emt 00:01:32]
[%clk 00:12:42]} Ne4 {[%emt 00:00:33] [%clk 00:14:35]} 9. Bxe7 {[%emt 00:00:22]
[%clk 00:12:30]} Qxe7 {[%emt 00:00:01] [%clk 00:14:43]} 10. cxd5 {[%emt
00:00:45] [%clk 00:11:56]} exd5 {[%emt 00:00:18] [%clk 00:14:35]} 11. Bd3 {[%emt
00:00:20] [%clk 00:11:45]} Nd6 {[%emt 00:01:53] [%clk 00:12:52]} 12. O-O {[%emt
00:00:32] [%clk 00:11:24]} Nd7 {[%emt 00:00:37] [%clk 00:12:25]} 13. Nb5 {[%emt
00:01:47] [%clk 00:09:47]} c5 {[%emt 00:00:27] [%clk 00:12:07]} 14. Nxd6 {[%emt
00:02:05] [%clk 00:07:52]} Qxd6 {[%emt 00:00:02] [%clk 00:12:16]} 15. Bf5 {[%emt
00:00:02] [%clk 00:07:59]} c4 {[%emt 00:00:31] [%clk 00:11:55]} 16. Bxd7 {[%emt
00:01:37] [%clk 00:06:33]} Qxd7 {[%emt 00:00:02] [%clk 00:12:03]} 17. Qd2 {[%emt
00:00:59] [%clk 00:05:44]} a5 {[%emt 00:00:33] [%clk 00:11:40]} 18. Ne1 {[%emt
00:00:21] [%clk 00:05:34]} Qd6 {[%emt 00:02:06] [%clk 00:09:43]} 19. Nc2 {[%emt
00:00:16] [%clk 00:05:28]} Bc8 {[%emt 00:00:17] [%clk 00:09:36]} 20. f3 {[%emt
00:00:50] [%clk 00:04:48]} f5 {[%emt 00:01:07] [%clk 00:08:39]} 21. e4 {[%emt
00:03:03] [%clk 00:01:55]} fxe4 {[%emt 00:00:35] [%clk 00:08:14]} 22. fxe4
{[%emt 00:00:01] [%clk 00:02:04]} Rxf1+ {[%emt 00:00:04] [%clk 00:08:20]} 23.
Rxf1 {[%emt 00:00:02] [%clk 00:02:12]} dxe4 {[%emt 00:00:01] [%clk 00:08:28]}
24. Ne3 {[%emt 00:00:02] [%clk 00:02:21]} b5 {[%emt 00:01:53] [%clk 00:06:44]}
25. a4 {[%emt 00:00:03] [%clk 00:02:28]} Bd7 {[%emt 00:01:35] [%clk 00:05:20]}
26. axb5 {[%emt 00:00:02] [%clk 00:02:37]} Bxb5 {[%clk 00:05:28]} 27. Rf5 {[%emt
00:00:07] [%clk 00:02:39]} Rb8 {[%emt 00:00:33] [%clk 00:05:06]} 28. Qxa5 {[%emt
00:01:46] [%clk 00:01:03]} Qxd4 {[%emt 00:00:10] [%clk 00:05:05]} 29. Qc3 {[%emt
00:00:01] [%clk 00:01:12]} Qxc3 {[%emt 00:02:20] [%clk 00:02:56]} 30. bxc3
{[%emt 00:00:01] [%clk 00:01:21]} Ba6 {[%clk 00:03:05]} 31. Ra5 {[%emt 00:00:46]
[%clk 00:00:45]} Rb6 {[%emt 00:00:03] [%clk 00:03:11]} 32. Kf2 {[%emt 00:00:20]
[%clk 00:00:37]} Kf7 {[%emt 00:00:41] [%clk 00:02:40]} 33. Nd5 {[%emt 00:00:14]
[%clk 00:00:32]} Rb2+ {[%emt 00:00:22] [%clk 00:02:28]} 34. Ke3 {[%clk
00:00:42]} Bb7 {[%emt 00:00:01] [%clk 00:02:38]} 35. Ra7 {[%emt 00:00:25] [%clk
00:00:28]} Ke6 {[%emt 00:00:03] [%clk 00:02:44]} 36. Nb4 {[%emt 00:00:15] [%clk
00:00:22]} Bc8 {[%emt 00:01:05] [%clk 00:01:50]} 37. Rxg7 {[%emt 00:00:01] [%clk
00:00:30]} Ke5 {[%emt 00:00:32] [%clk 00:01:29]} 38. Rg5+ {[%emt 00:00:15] [%clk
00:00:25]} Kf6 {[%emt 00:00:12] [%clk 00:01:27]} 39. Rc5 {[%emt 00:00:16] [%clk
00:00:19]} Be6 {[%emt 00:00:02] [%clk 00:01:35]} 40. Kxe4 {[%emt 00:00:11] [%clk
00:00:18]} Rxg2 {[%emt 00:00:12] [%clk 00:01:33]} 41. Nd5+ {[%emt 00:00:06]
[%clk 00:00:22]} Bxd5+ {[%emt 00:00:16] [%clk 00:01:26]} 42. Kxd5 {[%emt
00:00:04] [%clk 00:00:29]} 1/2-1/2

[Site "Europe Echecs"]

[Event "Championnat d'Europe Rapide"]
[Date "2024.12.08"]
[White "Tweedie, Steven"]
[Black "Danov, Lyubomir"]
[WhiteElo "2172"]
[BlackElo "2297"]
[Round "11.52"]
[Result "0-1"]
[TimeControl "900+10"]

1. e4 {[%emt 00:00:01] [%clk 00:15:17]} e5 {[%emt 00:00:05] [%clk 00:15:16]} 2.
Nf3 {[%emt 00:00:13] [%clk 00:15:14]} Nc6 {[%emt 00:00:01] [%clk 00:15:25]} 3.
Bc4 {[%emt 00:00:08] [%clk 00:15:16]} Bc5 {[%emt 00:00:05] [%clk 00:15:29]} 4.
d3 {[%emt 00:00:14] [%clk 00:15:12]} Nf6 {[%emt 00:00:03] [%clk 00:15:36]} 5.
Nc3 {[%emt 00:00:05] [%clk 00:15:17]} h6 {[%emt 00:00:09] [%clk 00:15:38]} 6.
O-O {[%emt 00:00:25] [%clk 00:15:02]} d6 {[%emt 00:00:04] [%clk 00:15:44]} 7. h3
{[%emt 00:00:05] [%clk 00:15:07]} g5 {[%emt 00:00:40] [%clk 00:15:14]} 8. Be3
{[%emt 00:02:11] [%clk 00:13:05]} g4 {[%emt 00:00:08] [%clk 00:15:17]} 9. hxg4
{[%emt 00:01:27] [%clk 00:11:48]} Bxg4 {[%emt 00:00:01] [%clk 00:15:25]} 10. Re1
{[%emt 00:00:05] [%clk 00:11:54]} Nd4 {[%emt 00:01:27] [%clk 00:14:07]} 11. Bxd4
{[%emt 00:03:40] [%clk 00:08:25]} Bxd4 {[%emt 00:00:01] [%clk 00:14:15]} 12. Kf1
{[%emt 00:00:03] [%clk 00:08:32]} Nh5 {[%emt 00:02:15] [%clk 00:12:10]} 13. Qd2
{[%emt 00:04:03] [%clk 00:04:40]} Bxf3 {[%emt 00:00:14] [%clk 00:12:06]} 14.
gxf3 {[%emt 00:00:02] [%clk 00:04:48]} Qh4 {[%emt 00:00:14] [%clk 00:12:01]} 15.
Ke2 {[%emt 00:01:26] [%clk 00:03:33]} Qxf2+ {[%emt 00:00:03] [%clk 00:12:07]}
16. Kd1 {[%emt 00:00:02] [%clk 00:03:42]} Qxd2+ {[%emt 00:00:01] [%clk
00:12:15]} 17. Kxd2 {[%emt 00:00:02] [%clk 00:03:51]} Bxc3+ {[%emt 00:00:03]
[%clk 00:12:22]} 18. Kxc3 {[%emt 00:00:19] [%clk 00:03:43]} Nf4 {[%emt 00:00:04]
[%clk 00:12:26]} 19. Rh1 {[%emt 00:00:22] [%clk 00:03:31]} Ke7 {[%emt 00:00:15]
[%clk 00:12:21]} 20. Rh2 {[%emt 00:00:45] [%clk 00:02:56]} Rag8 {[%emt 00:00:07]
[%clk 00:12:24]} 21. d4 {[%emt 00:00:02] [%clk 00:03:04]} Rg3 {[%emt 00:00:10]
[%clk 00:12:24]} 22. Rf1 {[%emt 00:00:02] [%clk 00:03:13]} h5 {[%emt 00:00:28]
[%clk 00:12:07]} 23. dxe5 {[%emt 00:00:02] [%clk 00:03:20]} dxe5 {[%emt
00:00:01] [%clk 00:12:16]} 24. Kd2 {[%emt 00:00:09] [%clk 00:03:21]} h4 {[%emt
00:00:11] [%clk 00:12:15]} 25. Ke3 {[%emt 00:00:07] [%clk 00:03:23]} h3 {[%emt
00:00:06] [%clk 00:12:19]} 26. Rfh1 {[%emt 00:00:05] [%clk 00:03:28]} Rg2 {[%emt
00:01:10] [%clk 00:11:19]} 27. Bf1 {[%emt 00:00:20] [%clk 00:03:19]} Rxh2 {[%emt
00:00:05] [%clk 00:11:24]} 28. Rxh2 {[%emt 00:00:01] [%clk 00:03:27]} Rd8 {[%emt
00:00:44] [%clk 00:10:50]} 29. Kf2 {[%emt 00:00:40] [%clk 00:02:58]} Rd1 {[%emt
00:01:01] [%clk 00:09:59]} 30. Bxh3 {[%emt 00:01:48] [%clk 00:01:20]} Ra1 {[%emt
00:00:04] [%clk 00:10:05]} 31. Kg3 {[%emt 00:01:08] [%clk 00:00:22]} Rxa2 {[%emt
00:00:07] [%clk 00:10:08]} 32. b3 {[%emt 00:00:01] [%clk 00:00:31]} Nxh3 {[%emt
00:00:52] [%clk 00:09:26]} 33. Kxh3 {[%emt 00:00:02] [%clk 00:00:39]} a5 {[%emt
00:00:01] [%clk 00:09:35]} 34. Rd2 {[%emt 00:00:34] [%clk 00:00:15]} c6 {[%emt
00:01:05] [%clk 00:08:40]} 35. Kg3 {[%emt 00:00:12] [%clk 00:00:13]} b5 {[%emt
00:00:09] [%clk 00:08:41]} 36. Kf2 {[%emt 00:00:01] [%clk 00:00:22]} a4 {[%emt
00:00:07] [%clk 00:08:44]} 37. bxa4 {[%emt 00:00:01] [%clk 00:00:31]} bxa4
{[%clk 00:08:53]} 38. Ke2 {[%emt 00:00:01] [%clk 00:00:40]} a3 {[%emt 00:01:02]
[%clk 00:08:01]} 39. Kd3 {[%emt 00:00:21] [%clk 00:00:29]} Ra1 {[%emt 00:00:06]
[%clk 00:08:05]} 40. c3 {[%emt 00:00:17] [%clk 00:00:22]} a2 {[%emt 00:01:37]
[%clk 00:06:38]} 41. Kc4 {[%emt 00:00:07] [%clk 00:00:25]} Ke6 {[%emt 00:01:26]
[%clk 00:05:23]} 42. Kb3 {[%emt 00:00:12] [%clk 00:00:23]} Rf1 {[%emt 00:00:02]
[%clk 00:05:30]} 43. Rxa2 {[%emt 00:00:12] [%clk 00:00:22]} Rxf3 {[%emt
00:00:02] [%clk 00:05:38]} 44. Ra4 {[%emt 00:00:01] [%clk 00:00:31]} Rf4 {[%emt
00:01:28] [%clk 00:04:18]} 45. Kc2 {[%emt 00:00:09] [%clk 00:00:33]} Kd6 {[%emt
00:00:06] [%clk 00:04:22]} 46. Ra7 {[%emt 00:00:28] [%clk 00:00:15]} f6 {[%emt
00:00:21] [%clk 00:04:10]} 47. Kd3 {[%clk 00:00:25]} Rf3+ {[%emt 00:00:06] [%clk
00:04:14]} 48. Kd2 {[%emt 00:00:02] [%clk 00:00:34]} Kc5 {[%emt 00:00:29] [%clk
00:03:53]} 49. Ra5+ {[%emt 00:00:02] [%clk 00:00:43]} Kb6 {[%emt 00:00:04] [%clk
00:04:00]} 50. Ra8 {[%emt 00:00:05] [%clk 00:00:47]} Kb5 {[%emt 00:00:06] [%clk
00:04:04]} 51. Rb8+ {[%emt 00:00:05] [%clk 00:00:52]} Kc4 {[%emt 00:00:05] [%clk
00:04:08]} 52. Rb4+ {[%emt 00:00:03] [%clk 00:01:01]} Kc5 {[%clk 00:04:17]} 53.
Rb8 {[%emt 00:00:12] [%clk 00:00:59]} Kd6 {[%emt 00:00:26] [%clk 00:04:01]} 54.
Rb6 {[%emt 00:00:05] [%clk 00:01:04]} Kc7 {[%emt 00:00:13] [%clk 00:03:59]} 55.
Rb4 {[%emt 00:00:04] [%clk 00:01:09]} c5 {[%emt 00:00:13] [%clk 00:03:56]} 56.
Rb5 {[%emt 00:00:28] [%clk 00:00:51]} Kc6 {[%emt 00:00:08] [%clk 00:03:59]} 57.
Rb8 {[%emt 00:00:01] [%clk 00:01:00]} f5 {[%emt 00:00:55] [%clk 00:03:13]} 58.
Rc8+ {[%emt 00:00:39] [%clk 00:00:30]} Kd6 {[%emt 00:00:06] [%clk 00:03:17]} 59.
Rd8+ {[%emt 00:00:05] [%clk 00:00:36]} Ke7 {[%emt 00:00:33] [%clk 00:02:54]} 60.
Rd5 {[%emt 00:00:03] [%clk 00:00:44]} Ke6 {[%emt 00:00:09] [%clk 00:02:55]} 61.
Rxc5 {[%emt 00:00:01] [%clk 00:00:52]} f4 {[%emt 00:00:04] [%clk 00:03:00]} 62.
Rc6+ {[%emt 00:00:07] [%clk 00:00:56]} Kd7 {[%emt 00:00:02] [%clk 00:03:07]} 63.
Rc5 {[%emt 00:00:43] [%clk 00:00:24]} Kd6 {[%emt 00:00:04] [%clk 00:03:13]} 64.
Rd5+ {[%emt 00:00:02] [%clk 00:00:33]} Ke6 {[%clk 00:03:22]} 65. Ra5 {[%emt
00:00:09] [%clk 00:00:33]} Re3 {[%emt 00:00:05] [%clk 00:03:27]} 66. Ra6+ {[%emt
00:00:18] [%clk 00:00:25]} Ke7 {[%emt 00:00:03] [%clk 00:03:34]} 67. Ra4 {[%emt
00:00:01] [%clk 00:00:34]} Kf6 {[%emt 00:00:10] [%clk 00:03:34]} 68. Ra6+ {[%emt
00:00:32] [%clk 00:00:13]} Kg5 {[%emt 00:00:03] [%clk 00:03:40]} 69. c4 {[%emt
00:00:11] [%clk 00:00:12]} Rxe4 {[%emt 00:00:03] [%clk 00:03:46]} 70. c5 {[%emt
00:00:06] [%clk 00:00:17]} Rd4+ {[%emt 00:00:19] [%clk 00:03:38]} 71. Ke2 {[%emt
00:00:10] [%clk 00:00:17]} e4 {[%emt 00:00:12] [%clk 00:03:35]} 72. c6 {[%emt
00:00:16] [%clk 00:00:12]} Rc4 {[%clk 00:03:43]} 73. Ra5+ {[%emt 00:00:01] [%clk
00:00:21]} Kg4 {[%clk 00:03:52]} 74. Re5 {[%emt 00:00:01] [%clk 00:00:29]} e3
{[%emt 00:00:26] [%clk 00:03:37]} 75. Re6 {[%emt 00:00:09] [%clk 00:00:30]} Kf5
{[%emt 00:00:03] [%clk 00:03:44]} 76. Rh6 {[%emt 00:00:04] [%clk 00:00:36]} Rc2+
{[%emt 00:00:07] [%clk 00:03:47]} 77. Kd3 {[%emt 00:00:08] [%clk 00:00:38]} Rd2+
{[%emt 00:00:01] [%clk 00:03:55]} 78. Kc3 {[%emt 00:00:01] [%clk 00:00:47]} Rd1
{[%emt 00:00:07] [%clk 00:03:58]} 79. Kc2 {[%emt 00:00:15] [%clk 00:00:43]} e2
{[%emt 00:00:32] [%clk 00:03:36]} 80. c7 {[%emt 00:00:02] [%clk 00:00:52]} Rc1+
{[%clk 00:03:45]} 81. Kxc1 {[%emt 00:00:20] [%clk 00:00:42]} e1=Q+ {[%emt
00:00:02] [%clk 00:03:52]} 82. Kc2 {[%emt 00:00:16] [%clk 00:00:35]} Qe4+ {[%emt
00:00:07] [%clk 00:03:55]} 0-1

[Site "Europe Echecs"]

[Event "Championnat d'Europe Rapide"]
[Date "2024.12.08"]
[White "Popovic, Milos T"]
[Black "Zygouris, Hristos"]
[WhiteElo "2334"]
[BlackElo "2163"]
[Round "11.53"]
[Result "1/2-1/2"]
[TimeControl "900+10"]

1. d4 {[%emt 00:00:02] [%clk 00:15:18]} d5 {[%emt 00:00:01] [%clk 00:15:19]} 2.
Bf4 {[%emt 00:00:04] [%clk 00:15:24]} c5 {[%emt 00:00:01] [%clk 00:15:27]} 3. e3
{[%emt 00:00:02] [%clk 00:15:32]} Nc6 {[%emt 00:00:02] [%clk 00:15:36]} 4. c3
{[%emt 00:00:13] [%clk 00:15:29]} Nf6 {[%emt 00:00:02] [%clk 00:15:43]} 5. Nd2
{[%emt 00:00:10] [%clk 00:15:30]} cxd4 {[%emt 00:00:05] [%clk 00:15:47]} 6. exd4
{[%emt 00:00:04] [%clk 00:15:37]} Bf5 {[%emt 00:00:02] [%clk 00:15:56]} 7. Qb3
{[%emt 00:00:36] [%clk 00:15:10]} Qc8 {[%emt 00:00:02] [%clk 00:16:03]} 8. Ngf3
{[%emt 00:00:09] [%clk 00:15:11]} e6 {[%emt 00:00:01] [%clk 00:16:12]} 9. Be2
{[%emt 00:00:16] [%clk 00:15:05]} Be7 {[%emt 00:00:02] [%clk 00:16:21]} 10. O-O
{[%emt 00:00:05] [%clk 00:15:10]} O-O {[%emt 00:00:02] [%clk 00:16:29]} 11. Rfe1
{[%emt 00:02:10] [%clk 00:13:10]} a6 {[%emt 00:00:23] [%clk 00:16:16]} 12. a4
{[%emt 00:01:24] [%clk 00:11:56]} Na5 {[%emt 00:01:43] [%clk 00:14:44]} 13. Qd1
{[%emt 00:00:08] [%clk 00:11:57]} b5 {[%emt 00:04:30] [%clk 00:10:24]} 14. axb5
{[%emt 00:00:39] [%clk 00:11:28]} axb5 {[%emt 00:00:01] [%clk 00:10:33]} 15. Nh4
{[%emt 00:00:11] [%clk 00:11:27]} Be4 {[%emt 00:00:43] [%clk 00:10:00]} 16. Nxe4
{[%emt 00:02:18] [%clk 00:09:19]} Nxe4 {[%emt 00:00:02] [%clk 00:10:09]} 17. Nf3
{[%emt 00:00:02] [%clk 00:09:26]} Nc4 {[%emt 00:00:11] [%clk 00:10:07]} 18. Qc2
{[%emt 00:00:25] [%clk 00:09:11]} Qb7 {[%emt 00:00:26] [%clk 00:09:52]} 19. Bd3
{[%emt 00:00:08] [%clk 00:09:13]} Nf6 {[%emt 00:01:12] [%clk 00:08:49]} 20. b3
{[%emt 00:00:46] [%clk 00:08:39]} Nd6 {[%emt 00:01:05] [%clk 00:07:53]} 21. Qe2
{[%emt 00:00:20] [%clk 00:08:28]} Nfe4 {[%emt 00:00:14] [%clk 00:07:50]} 22.
Bxd6 {[%emt 00:00:11] [%clk 00:08:27]} Nxd6 {[%emt 00:00:09] [%clk 00:07:51]}
23. Ne5 {[%emt 00:00:32] [%clk 00:08:05]} g6 {[%emt 00:00:48] [%clk 00:07:13]}
24. g3 {[%emt 00:00:06] [%clk 00:08:09]} Rfc8 {[%emt 00:00:08] [%clk 00:07:15]}
25. Rxa8 {[%emt 00:00:20] [%clk 00:07:59]} Rxa8 {[%emt 00:00:01] [%clk
00:07:24]} 26. c4 {[%emt 00:00:28] [%clk 00:07:41]} bxc4 {[%emt 00:00:06] [%clk
00:07:28]} 27. bxc4 {[%emt 00:00:01] [%clk 00:07:50]} dxc4 {[%emt 00:00:07]
[%clk 00:07:31]} 28. Nxc4 {[%emt 00:00:02] [%clk 00:07:58]} Rd8 {[%emt 00:00:57]
[%clk 00:06:44]} 29. Nxd6 {[%emt 00:00:56] [%clk 00:07:12]} Rxd6 {[%emt
00:00:11] [%clk 00:06:43]} 30. Be4 {[%emt 00:00:03] [%clk 00:07:20]} Qd7 {[%emt
00:01:33] [%clk 00:05:19]} 31. d5 {[%emt 00:00:31] [%clk 00:06:59]} exd5 {[%emt
00:00:47] [%clk 00:04:43]} 32. Bxd5 {[%emt 00:00:01] [%clk 00:07:07]} Bd8 {[%emt
00:00:41] [%clk 00:04:12]} 33. Qe8+ {[%emt 00:00:04] [%clk 00:07:13]} Qxe8
{[%emt 00:00:02] [%clk 00:04:21]} 34. Rxe8+ {[%emt 00:00:01] [%clk 00:07:22]}
Kg7 {[%clk 00:04:30]} 35. Bf3 {[%emt 00:00:03] [%clk 00:07:29]} 1/2-1/2

[Site "Europe Echecs"]

[Event "Championnat d'Europe Rapide"]
[Date "2024.12.08"]
[White "Nevednichy, Vladislav"]
[Black "Suljovic, Sulejman"]
[WhiteElo "2451"]
[BlackElo "2182"]
[Round "11.54"]
[Result "1-0"]
[TimeControl "900+10"]

1. e4 {[%clk 00:15:19]} e6 {[%clk 00:15:20]} 2. d4 {[%emt 00:00:03] [%clk
00:15:26]} d5 {[%clk 00:15:29]} 3. Nc3 {[%emt 00:00:01] [%clk 00:15:35]} dxe4
{[%emt 00:00:01] [%clk 00:15:38]} 4. Nxe4 {[%emt 00:00:01] [%clk 00:15:44]} Bd7
{[%clk 00:15:48]} 5. c4 {[%emt 00:00:56] [%clk 00:14:59]} Bc6 {[%emt 00:00:06]
[%clk 00:15:51]} 6. Nc3 {[%emt 00:00:01] [%clk 00:15:08]} Bb4 {[%emt 00:00:15]
[%clk 00:15:47]} 7. Nge2 {[%emt 00:00:26] [%clk 00:14:51]} Nf6 {[%emt 00:00:10]
[%clk 00:15:47]} 8. f3 {[%emt 00:00:03] [%clk 00:14:59]} Nbd7 {[%emt 00:00:15]
[%clk 00:15:42]} 9. a3 {[%emt 00:00:06] [%clk 00:15:03]} Bxc3+ {[%emt 00:00:03]
[%clk 00:15:48]} 10. Nxc3 {[%clk 00:15:12]} Nb6 {[%emt 00:00:13] [%clk
00:15:46]} 11. Be3 {[%emt 00:00:13] [%clk 00:15:09]} Qd7 {[%emt 00:00:11] [%clk
00:15:44]} 12. a4 {[%emt 00:00:06] [%clk 00:15:14]} a5 {[%emt 00:00:24] [%clk
00:15:30]} 13. Bd3 {[%emt 00:00:20] [%clk 00:15:03]} Qe7 {[%emt 00:00:22] [%clk
00:15:18]} 14. O-O {[%emt 00:00:20] [%clk 00:14:54]} Rd8 {[%emt 00:00:19] [%clk
00:15:09]} 15. b3 {[%emt 00:00:24] [%clk 00:14:40]} O-O {[%emt 00:00:18] [%clk
00:15:00]} 16. Qc2 {[%emt 00:00:03] [%clk 00:14:47]} Nbd7 {[%emt 00:00:45] [%clk
00:14:26]} 17. Rfe1 {[%emt 00:00:05] [%clk 00:14:52]} Nb8 {[%emt 00:00:07] [%clk
00:14:29]} 18. Bf2 {[%emt 00:00:25] [%clk 00:14:36]} Na6 {[%emt 00:00:20] [%clk
00:14:19]} 19. Bf1 {[%emt 00:00:47] [%clk 00:13:59]} Nb4 {[%emt 00:00:46] [%clk
00:13:42]} 20. Qe2 {[%emt 00:00:03] [%clk 00:14:07]} b6 {[%emt 00:00:14] [%clk
00:13:40]} 21. Rad1 {[%emt 00:00:02] [%clk 00:14:14]} Rfe8 {[%emt 00:01:22]
[%clk 00:12:27]} 22. Bh4 {[%emt 00:00:08] [%clk 00:14:15]} h6 {[%emt 00:00:49]
[%clk 00:11:50]} 23. f4 {[%emt 00:01:29] [%clk 00:12:55]} Bb7 {[%emt 00:00:44]
[%clk 00:11:16]} 24. f5 {[%emt 00:00:28] [%clk 00:12:37]} Qf8 {[%emt 00:00:49]
[%clk 00:10:37]} 25. Bxf6 {[%emt 00:00:56] [%clk 00:11:51]} gxf6 {[%clk
00:10:46]} 26. fxe6 {[%emt 00:00:13] [%clk 00:11:48]} Rxe6 {[%emt 00:01:03]
[%clk 00:09:53]} 27. Qf2 {[%emt 00:00:43] [%clk 00:11:15]} Qg7 {[%emt 00:01:43]
[%clk 00:08:20]} 28. d5 {[%emt 00:00:20] [%clk 00:11:06]} Re5 {[%emt 00:01:27]
[%clk 00:07:03]} 29. Ne4 {[%emt 00:00:07] [%clk 00:11:08]} f5 {[%emt 00:00:49]
[%clk 00:06:24]} 30. Ng3 {[%emt 00:00:03] [%clk 00:11:15]} Rde8 {[%emt 00:01:07]
[%clk 00:05:27]} 31. Nxf5 {[%emt 00:00:09] [%clk 00:11:16]} Qf6 {[%emt 00:00:43]
[%clk 00:04:54]} 32. Rxe5 {[%emt 00:00:17] [%clk 00:11:09]} Rxe5 {[%emt
00:00:03] [%clk 00:05:02]} 33. Nd4 {[%emt 00:00:16] [%clk 00:11:02]} Qe7 {[%emt
00:00:49] [%clk 00:04:24]} 34. Nf3 {[%emt 00:00:13] [%clk 00:10:59]} Re3 {[%emt
00:00:23] [%clk 00:04:11]} 35. Nd4 {[%emt 00:01:35] [%clk 00:09:33]} Bc8 {[%emt
00:00:29] [%clk 00:03:53]} 36. Ne6 {[%emt 00:00:33] [%clk 00:09:10]} Rxb3 {[%emt
00:00:31] [%clk 00:03:31]} 37. Nd4 {[%emt 00:00:19] [%clk 00:09:01]} Re3 {[%emt
00:00:06] [%clk 00:03:36]} 38. Nb5 {[%emt 00:01:56] [%clk 00:07:15]} Bg4 {[%emt
00:00:47] [%clk 00:02:58]} 39. Rd2 {[%emt 00:01:21] [%clk 00:06:05]} Qe5 {[%emt
00:01:07] [%clk 00:02:01]} 40. Nxc7 {[%emt 00:01:40] [%clk 00:04:35]} Bd7 {[%emt
00:01:30] [%clk 00:00:40]} 41. d6 {[%emt 00:00:17] [%clk 00:04:28]} Kf8 {[%emt
00:00:23] [%clk 00:00:28]} 42. Nd5 {[%emt 00:00:35] [%clk 00:04:03]} Nxd5 43.
Rxd5 {[%clk 00:04:11]} Qe6 {[%emt 00:00:03] [%clk 00:00:41]} 44. Qb2 {[%emt
00:00:21] [%clk 00:04:00]} f6 {[%emt 00:00:25] [%clk 00:00:27]} 45. Qxb6 {[%emt
00:00:19] [%clk 00:03:50]} Re1 {[%emt 00:00:02] [%clk 00:00:36]} 46. Qf2 {[%emt
00:00:53] [%clk 00:03:07]} Rc1 {[%emt 00:00:22] [%clk 00:00:24]} 47. Rxa5 {[%emt
00:00:52] [%clk 00:02:25]} Qxd6 {[%emt 00:00:16] [%clk 00:00:18]} 48. Rd5 {[%emt
00:00:12] [%clk 00:02:22]} Qe6 {[%emt 00:00:07] [%clk 00:00:22]} 49. Qd2 {[%emt
00:00:18] [%clk 00:02:14]} Re1 {[%emt 00:00:18] [%clk 00:00:14]} 50. Rxd7 {[%emt
00:00:34] [%clk 00:01:49]} 1-0